fUSD/lending_fUSD_20250608
["ID","MTS","AMOUNT","RATE_DAILY","PERIOD"]
[364989247,1749385831734,-168.0,0.00018427,2]
[364989248,1749385831743,-161.87543658,0.00018493,2]
[364989249,1749385831753,-168.0,0.00018533,2]
[364989250,1749385831763,-210.72505852,0.00018571,2]
[364989251,1749385831772,-168.92,0.00018627,2]
[364989252,1749385831782,-207.4,0.00018689,2]
[364989253,1749385831791,-361.15946496,0.000187,2]
[364989255,1749385831802,-938.48826842,0.000187,2]
[364989258,1749385831821,-822.98562314,0.000187,2]
[364989260,1749385831831,-636.70119615,0.000187,2]
[364989732,1749385837407,-329.82002416,0.000187,2]
[364989733,1749385837416,-168.0,0.00018706,2]
[364989734,1749385837425,-1544.56,0.00018711,2]
[364989735,1749385837436,-161.87543658,0.00018712,2]
[364989736,1749385837445,-151.0,0.00018803,2]
[364989737,1749385837455,-1164.0,0.00018815,2]
[364989738,1749385837464,-2575.446,0.00018815,2]
[364989739,1749385837474,-852.0,0.00018815,2]
[364989740,1749385837483,-883.0,0.00018815,2]
[364989741,1749385837493,-167.0,0.00018834,2]
[364989742,1749385837502,-1760.0,0.00018866,2]
[364989743,1749385837511,-173.205252,0.00018875,2]
[364989744,1749385837521,-6178.24,0.00018878,2]
[364989745,1749385837531,-665.7650439,0.000189,2]
[364989746,1749385837540,-322.635219,0.000189,3]
[364989747,1749385837550,-1500.0,0.000189,6]
[364989748,1749385837560,-210.72505852,0.000189,2]
[364989749,1749385837569,-152.30567017,0.000189,2]
[364989750,1749385837579,-161.87543658,0.00018904,2]
[364989751,1749385837588,-6628.8682,0.0001891,2]
[364989752,1749385837597,-2981.50650977,0.00018911,2]
[364989753,1749385837607,-168.0,0.0001892,2]
[364989754,1749385837616,-150.0,0.00018982,2]
[364989755,1749385837626,-152.30567012,0.00018982,2]
[364989756,1749385837636,-3925.33610045,0.00019,2]
[364989757,1749385837646,-6331.33,0.00019,2]
[364989758,1749385837655,-6331.33,0.00019,2]
[364989759,1749385837665,-6331.33,0.00019,2]
[364989760,1749385837674,-6331.33,0.00019,2]
[364989761,1749385837684,-212193.56164923,0.00019,3]
[364989762,1749385837693,-195.8,0.00019,2]
[364989763,1749385837704,-1000.0,0.00019,2]
[364989764,1749385837714,-500.0,0.00019,2]
[364989765,1749385837723,-500.0,0.00019,2]
[364989766,1749385837732,-500.0,0.00019,2]
[364989768,1749385837742,-500.0,0.00019,2]
[364989770,1749385837751,-500.0,0.00019,2]
[364989772,1749385837759,-540.05055712,0.00019,2]
[364989774,1749385837769,-226.5,0.00019,2]
[364989776,1749385837778,-250.0,0.00019,2]
[364989778,1749385837787,-151.0,0.00019,2]
[364989780,1749385837796,-151.0,0.00019,2]
[364989782,1749385837805,-151.0,0.00019,2]
[364989784,1749385837815,-153.823184,0.00019,2]
[364989785,1749385837824,-151.0,0.00019,2]
[364989787,1749385837834,-222.81075,0.00019,2]
[364989789,1749385837843,-151.0,0.00019,2]
[364989791,1749385837852,-159.116098,0.00019,2]
[364989793,1749385837862,-151.0,0.00019,2]
[364989795,1749385837871,-151.0,0.00019,2]
[364989797,1749385837881,-151.0,0.00019,2]
[364989799,1749385837890,-291.870645,0.00019,2]
[364989801,1749385837899,-151.0,0.00019,2]
[364989803,1749385837909,-151.0,0.00019,2]
[364989805,1749385837918,-151.0,0.00019,2]
[364989807,1749385837928,-151.0,0.00019,2]
[364989810,1749385837937,-151.0,0.00019,2]
[364989812,1749385837946,-151.0,0.00019,2]
[364989814,1749385837956,-151.0,0.00019,2]
[364989816,1749385837965,-151.0,0.00019,2]
[364989818,1749385837973,-151.0,0.00019,2]
[364989820,1749385837984,-151.0,0.00019,2]
[364989822,1749385837993,-151.0,0.00019,2]
[364989824,1749385838002,-151.0,0.00019,2]
[364989826,1749385838011,-151.0,0.00019,2]
[364989828,1749385838020,-151.0,0.00019,2]
[364989830,1749385838029,-151.0,0.00019,2]
[364989832,1749385838039,-151.0,0.00019,2]
[364989834,1749385838049,-151.0,0.00019,2]
[364989836,1749385838058,-151.0,0.00019,2]
[364989837,1749385838105,-151.0,0.00019,2]
[364989840,1749385838117,-151.0,0.00019,2]
[364989841,1749385838126,-151.0,0.00019,2]
[364989843,1749385838137,-151.0,0.00019,2]
[364989845,1749385838146,-151.0,0.00019,2]
[364989847,1749385838155,-151.0,0.00019,2]
[364989849,1749385838164,-151.0,0.00019,2]
[364989851,1749385838174,-151.0,0.00019,2]
[364989853,1749385838183,-151.0,0.00019,2]
[364989855,1749385838192,-151.0,0.00019,2]
[364989857,1749385838201,-151.0,0.00019,2]
[364989859,1749385838211,-151.0,0.00019,2]
[364989861,1749385838220,-151.0,0.00019,2]
[364989863,1749385838230,-151.0,0.00019,2]
[364989865,1749385838238,-198.0,0.00019,2]
[364989867,1749385838248,-151.0,0.00019,2]
[364989869,1749385838258,-151.0,0.00019,2]
[364989871,1749385838267,-151.0,0.00019,2]
[364989873,1749385838276,-151.0,0.00019,2]
[364989875,1749385838284,-151.0,0.00019,2]
[364989877,1749385838293,-151.0,0.00019,2]
[364989879,1749385838303,-151.0,0.00019,2]
[364989881,1749385838312,-151.0,0.00019,2]
[364989882,1749385838321,-2070.369242,0.00019,2]
[364989884,1749385838329,-2070.369242,0.00019,2]
[364989886,1749385838339,-151.0,0.00019,2]
[364989888,1749385838352,-151.0,0.00019,2]
[364989890,1749385838361,-151.0,0.00019,2]
[364989892,1749385838370,-151.122323,0.00019,2]
[364989894,1749385838380,-152.196669,0.00019,2]
[364989896,1749385838389,-151.0,0.00019,2]
[364989898,1749385838398,-151.0,0.00019,2]
[364989900,1749385838407,-151.0,0.00019,2]
[364989902,1749385838417,-275.545083,0.00019,2]
[364989904,1749385838426,-275.545083,0.00019,2]
[364989906,1749385838434,-151.0,0.00019,2]
[364989908,1749385838443,-151.0,0.00019,2]
[364989910,1749385838452,-150.0,0.00019008,2]
[364989911,1749385838461,-300.0,0.00019009,2]
[364989913,1749385838470,-300.0,0.0001901,2]
[364989915,1749385838480,-151.0,0.0001901,2]
[364989917,1749385838490,-151.0,0.0001901,2]
[364989919,1749385838499,-151.0,0.0001901,2]
[364989921,1749385838508,-151.0,0.0001901,2]
[364989923,1749385838518,-151.0,0.0001901,2]
[364989925,1749385838527,-151.0,0.0001901,2]
[364989927,1749385838536,-151.0,0.0001901,2]
[364989929,1749385838545,-151.783363,0.0001901,2]
[364989931,1749385838555,-283.221034,0.0001901,2]
[364989933,1749385838564,-151.0,0.0001901,2]
[364989935,1749385838573,-222.273042,0.0001901,2]
[364989937,1749385838582,-151.0,0.0001901,2]
[364989939,1749385838591,-250.040995,0.0001901,2]
[364989941,1749385838600,-250.040995,0.0001901,2]
[364989943,1749385838609,-151.0,0.0001901,2]
[364989945,1749385838618,-151.0,0.0001901,2]
[364989947,1749385838627,-151.0,0.0001901,2]
[364989949,1749385838636,-151.0,0.0001901,2]
[364989951,1749385838645,-151.0,0.0001901,2]
[364989953,1749385838654,-151.0,0.0001901,2]
[364989955,1749385838663,-151.0,0.0001901,2]
[364989957,1749385838671,-151.0,0.0001901,2]
[364989958,1749385838680,-151.0,0.0001901,2]
[364989960,1749385838689,-151.0,0.0001901,2]
[364989962,1749385838697,-264.732366,0.0001901,2]
[364989964,1749385838707,-151.541357,0.0001901,2]
[364989966,1749385838716,-151.0,0.0001901,2]
[364989968,1749385838725,-151.0,0.0001901,2]
[364989970,1749385838734,-151.0,0.0001901,2]
[364989972,1749385838743,-151.0,0.0001901,2]
[364989974,1749385838752,-151.0,0.0001901,2]
[364989996,1749385838946,-151.0,0.0001901,2]
[364989998,1749385838955,-151.0,0.0001901,2]
[364990000,1749385838965,-151.162687,0.0001901,2]
[364990002,1749385838974,-151.0,0.0001901,2]
[364990004,1749385838987,-151.0,0.0001901,2]
[364990006,1749385838996,-151.0,0.0001901,2]
[364990008,1749385839005,-151.0,0.0001901,2]
[364990010,1749385839015,-151.0,0.0001901,2]
[364990012,1749385839023,-151.0,0.0001901,2]
[364990014,1749385839032,-151.0,0.0001901,2]
[364990016,1749385839042,-151.0,0.0001901,2]
[364990017,1749385839051,-151.0,0.0001901,2]
[364990019,1749385839060,-151.0,0.0001901,2]
[364990021,1749385839069,-151.0,0.0001901,2]
[364990023,1749385839079,-151.0,0.0001901,2]
[364990026,1749385839089,-151.0,0.0001901,2]
[364990027,1749385839098,-151.0,0.0001901,2]
[364990029,1749385839107,-251.750507,0.0001901,2]
[364990031,1749385839116,-152.028849,0.0001901,2]
[364990033,1749385839125,-151.0,0.0001901,2]
[364990035,1749385839134,-151.0,0.0001901,2]
[364990037,1749385839143,-151.0,0.0001901,2]
[364990039,1749385839152,-151.0,0.0001901,2]
[364990041,1749385839161,-151.0,0.0001901,2]
[364990043,1749385839172,-171.590766,0.0001901,2]
[364990045,1749385839182,-295.574547,0.0001901,2]
[364990047,1749385839192,-295.574547,0.0001901,2]
[364990049,1749385839201,-295.574547,0.0001901,2]
[364990051,1749385839211,-295.574547,0.0001901,2]
[364990053,1749385839220,-151.0,0.0001901,2]
[364990055,1749385839229,-252.732489,0.0001901,2]
[364990057,1749385839238,-151.0,0.0001901,2]
[364990058,1749385839247,-151.0,0.0001901,2]
[364990060,1749385839256,-152.175624,0.0001901,2]
[364990062,1749385839265,-151.0,0.0001901,2]
[364990064,1749385839274,-215.742022,0.0001901,2]
[364990066,1749385839283,-151.0,0.0001901,2]
[364990068,1749385839292,-151.0,0.0001901,2]
[364990070,1749385839302,-151.0,0.0001901,2]
[364990072,1749385839311,-196.712187,0.0001901,2]
[364990074,1749385839320,-151.0,0.0001901,2]
[364990076,1749385839329,-151.0,0.0001901,2]
[364990078,1749385839338,-151.0,0.0001901,2]
[364990080,1749385839351,-151.0,0.0001901,2]
[364990082,1749385839360,-252.705522,0.0001901,2]
[364990084,1749385839370,-252.705522,0.0001901,2]
[364990086,1749385839379,-151.0,0.0001901,2]
[364990088,1749385839388,-151.0,0.0001901,2]
[364990089,1749385839397,-151.0,0.0001901,2]
[364990091,1749385839406,-151.0,0.0001901,2]
[364990093,1749385839415,-151.0,0.0001901,2]
[364990095,1749385839425,-151.0,0.0001901,2]
[364990097,1749385839434,-151.0,0.0001901,2]
[364990099,1749385839445,-173.203436,0.0001901,2]
[364990101,1749385839455,-151.0,0.0001901,2]
[364990103,1749385839464,-151.0,0.0001901,2]
[364990104,1749385839473,-151.0,0.0001901,2]
[364990106,1749385839484,-151.0,0.0001901,2]
[364990108,1749385839493,-151.0,0.0001901,2]
[364990109,1749385839502,-151.0,0.0001901,2]
[364990111,1749385839512,-365.313257,0.0001901,2]
[364990113,1749385839521,-365.313257,0.0001901,2]
[364990115,1749385839530,-365.313257,0.0001901,2]
[364990117,1749385839539,-151.0,0.0001901,2]
[364990119,1749385839549,-365.313257,0.0001901,2]
[364990121,1749385839558,-151.0,0.0001901,2]
[364990123,1749385839567,-151.0,0.0001901,2]
[364990125,1749385839576,-151.0,0.0001901,2]
[364990127,1749385839586,-176.487732,0.0001901,2]
[364990129,1749385839596,-151.0,0.0001901,2]
[364990131,1749385839605,-151.0,0.0001901,2]
[364990133,1749385839615,-151.0,0.0001901,2]
[364990134,1749385839625,-151.0,0.0001901,2]
[364990136,1749385839634,-151.0,0.0001901,2]
[364990138,1749385839643,-234.082302,0.0001901,2]
[364990140,1749385839654,-154.41495,0.0001901,2]
[364990142,1749385839664,-151.0,0.0001901,2]
[364990144,1749385839673,-151.0,0.0001901,2]
[364990146,1749385839682,-151.0,0.0001901,2]
[364990148,1749385839691,-152.202376,0.0001901,2]
[364990150,1749385839701,-151.0,0.0001901,2]
[364990152,1749385839710,-151.0,0.0001901,2]
[364990154,1749385839719,-151.0,0.0001901,2]
[364990156,1749385839728,-151.0,0.0001901,2]
[364990158,1749385839737,-151.0,0.0001901,2]
[364990160,1749385839746,-151.0,0.0001901,2]
[364990161,1749385839755,-151.0,0.0001901,2]
[364990163,1749385839764,-151.0,0.0001901,2]
[364990165,1749385839773,-151.0,0.0001901,2]
[364990167,1749385839783,-151.0,0.0001901,2]
[364990169,1749385839792,-151.0,0.0001901,2]
[364990171,1749385839802,-151.0,0.0001901,2]
[364990173,1749385839811,-242.444614,0.0001901,2]
[364990175,1749385839821,-151.0,0.0001901,2]
[364990177,1749385839831,-151.0,0.0001901,2]
[364990179,1749385839840,-151.0,0.0001901,2]
[364990181,1749385839849,-151.0,0.0001901,2]
[364990182,1749385839859,-213.40047,0.0001901,2]
[364990183,1749385839867,-151.502699,0.0001901,2]
[364990184,1749385839877,-291.870645,0.0001901,2]
[364990185,1749385839886,-291.870645,0.0001901,2]
[364990186,1749385839895,-151.0,0.0001901,2]
[364990187,1749385839905,-151.0,0.0001901,2]
[364990188,1749385839914,-151.0,0.0001901,2]
[364990189,1749385839924,-151.0,0.0001901,2]
[364990190,1749385839934,-151.0,0.0001901,2]
[364990191,1749385839944,-151.0,0.0001901,2]
[364990192,1749385839954,-151.0,0.0001901,2]
[364990193,1749385839964,-232.507636,0.0001901,2]
[364990194,1749385839974,-151.0,0.0001901,2]
[364990195,1749385839983,-151.0,0.0001901,2]
[364990197,1749385839992,-239.710474,0.0001901,2]
[364990199,1749385840001,-194.298418,0.0001901,2]
[364990201,1749385840010,-151.0,0.0001901,2]
[364990203,1749385840022,-226.416354,0.0001901,2]
[364990205,1749385840031,-2070.369242,0.0001901,2]
[364990207,1749385840040,-2070.369242,0.0001901,2]
[364990208,1749385840049,-2070.369242,0.0001901,2]
[364990210,1749385840060,-2070.369242,0.0001901,2]
[364990212,1749385840069,-2070.369242,0.0001901,2]
[364990214,1749385840078,-2070.369242,0.0001901,2]
[364990216,1749385840087,-151.654714,0.0001901,2]
[364990218,1749385840096,-151.0,0.0001901,2]
[364990220,1749385840105,-151.0,0.0001901,2]
[364990222,1749385840114,-151.0,0.0001901,2]
[364990223,1749385840123,-151.0,0.0001901,2]
[364990225,1749385840132,-153.275162,0.0001901,2]
[364990227,1749385840141,-151.0,0.0001901,2]
[364990229,1749385840151,-275.545083,0.0001901,2]
[364990231,1749385840160,-275.545083,0.0001901,2]
[364990233,1749385840169,-275.545083,0.0001901,2]
[364990235,1749385840178,-275.545083,0.0001901,2]
[364990237,1749385840188,-275.545083,0.0001901,2]
[364990239,1749385840198,-275.545083,0.0001901,2]
[364990241,1749385840208,-151.0,0.0001901,2]
[364990243,1749385840218,-151.0,0.0001901,2]
[364990245,1749385840228,-151.0,0.0001901,2]
[364990247,1749385840237,-37781.27227239,0.00019011,2]
[364990249,1749385840246,-493.12236406,0.00019013,2]
[364990251,1749385840256,-310.122,0.00019015,2]
[364990253,1749385840265,-2981.50650972,0.00019021,2]
[364990255,1749385840276,-150.0,0.00019022,2]
[364990257,1749385840285,-168.0,0.00019024,2]
[364990258,1749385840294,-150.0,0.00019042,2]
[364990260,1749385840305,-150.0,0.00019042,2]
[364990262,1749385840315,-150.0,0.0001905,2]
[364990265,1749385840325,-150.0,0.0001906,2]
[364990268,1749385840334,-152.30567012,0.00019065,2]
[364990270,1749385840344,-150.0,0.00019065,2]
[364990272,1749385840353,-150.0,0.00019068,2]
[364990274,1749385840362,-150.0,0.00019072,2]
[364990276,1749385840371,-150.0,0.00019073,2]
[364990278,1749385840381,-150.0,0.00019074,2]
[364990280,1749385840390,-5000.0,0.00019078,2]
[364990282,1749385840399,-322.635219,0.00019085,3]
[364990284,1749385840408,-150.0,0.00019091,2]
[364990286,1749385840419,-1000.0,0.000191,2]
[364990288,1749385840428,-176.63,0.0001911,2]
[364990290,1749385840437,-150.0,0.00019118,2]
[364990292,1749385840446,-150.0,0.00019118,2]
[364990294,1749385840456,-151.0,0.00019122,2]
[364990296,1749385840466,-291.870645,0.00019122,2]
[364990298,1749385840475,-151.0,0.00019122,2]
[364990300,1749385840484,-151.0,0.00019122,2]
[364990302,1749385840493,-2070.369242,0.00019122,2]
[364990304,1749385840502,-2070.369242,0.00019122,2]
[364990306,1749385840511,-275.545083,0.00019122,2]
[364990308,1749385840521,-275.545083,0.00019122,2]
[364990310,1749385840530,-161.87543658,0.00019123,2]
[364990312,1749385840540,-2981.50650972,0.00019131,2]
[364990314,1749385840549,-150.0,0.00019131,2]
[364990315,1749385840558,-1000.0,0.00019138,2]
[364990317,1749385840567,-151.0,0.00019138,2]
[364990319,1749385840577,-152.30567012,0.00019147,2]
[364990321,1749385840586,-1000.0,0.0001915,2]
[364990323,1749385840595,-151.0,0.0001915,2]
[364990325,1749385840606,-153.665779,0.0001915,2]
[364990328,1749385840616,-151.0,0.0001915,2]
[364990329,1749385840626,-151.0,0.0001915,2]
[364990331,1749385840635,-151.0,0.0001915,2]
[364990333,1749385840644,-151.0,0.0001915,2]
[364990335,1749385840654,-151.0,0.0001915,2]
[364990337,1749385840663,-152.267092,0.0001915,2]
[364990339,1749385840672,-152.572298,0.0001915,2]
[364990341,1749385840681,-151.0,0.0001915,2]
[364990343,1749385840690,-183.116592,0.0001915,2]
[364990345,1749385840699,-151.0,0.0001915,2]
[364990347,1749385840709,-295.574547,0.0001915,2]
[364990349,1749385840718,-295.574547,0.0001915,2]
[364990351,1749385840727,-151.0,0.0001915,2]
[364990353,1749385840737,-151.0,0.0001915,2]
[364990355,1749385840746,-151.0,0.0001915,2]
[364990357,1749385840755,-151.0,0.0001915,2]
[364990359,1749385840763,-252.705522,0.0001915,2]
[364990361,1749385840773,-160.124234,0.0001915,2]
[364990362,1749385840782,-151.0,0.0001915,2]
[364990364,1749385840791,-151.0,0.0001915,2]
[364990366,1749385840800,-365.313257,0.0001915,2]
[364990368,1749385840809,-365.313257,0.0001915,2]
[364990370,1749385840818,-151.0,0.0001915,2]
[364990372,1749385840828,-239.8357,0.0001915,2]
[364990374,1749385840837,-151.0,0.0001915,2]
[364990377,1749385840846,-151.0,0.0001915,2]
[364990379,1749385840855,-151.0,0.0001915,2]
[364990381,1749385840865,-151.0,0.0001915,2]
[364990383,1749385840874,-151.0,0.00019158,2]
[364990385,1749385840883,-151.0,0.00019158,2]
[364990387,1749385840893,-250.040995,0.00019158,2]
[364990389,1749385840902,-250.040995,0.00019158,2]
[364990391,1749385840911,-275.545083,0.00019158,2]
[364990393,1749385840921,-275.545083,0.00019158,2]
[364990395,1749385840930,-150.0,0.00019167,2]
[364990397,1749385840939,-151.0,0.00019169,2]
[364990399,1749385840949,-151.826696,0.00019169,2]
[364990401,1749385840958,-151.0,0.00019169,2]
[364990402,1749385840967,-151.0,0.00019169,2]
[364990404,1749385840977,-151.0,0.00019169,2]
[364990406,1749385840986,-151.0,0.00019169,2]
[364990408,1749385840995,-151.0,0.00019169,2]
[364990410,1749385841005,-151.0,0.00019169,2]
[364990412,1749385841014,-151.0,0.00019169,2]
[364990414,1749385841024,-2070.369242,0.00019169,2]
[364990416,1749385841033,-2070.369242,0.00019169,2]
[364990418,1749385841042,-500.0,0.00019173,2]
[364990420,1749385841051,-500.0,0.00019173,2]
[364990422,1749385841060,-500.89431666,0.00019173,2]
[364990424,1749385841069,-500.0,0.00019173,2]
[364990426,1749385841078,-551.10846169,0.00019173,2]
[364990427,1749385841089,-502.70935923,0.00019173,2]
[364990429,1749385841099,-500.0,0.00019173,2]
[364990431,1749385841108,-151.73021859,0.00019173,2]
[364990433,1749385841117,-291.870645,0.00019173,2]
[364990435,1749385841127,-291.870645,0.00019173,2]
[364990437,1749385841136,-150.98708166,0.00019175,2]
[364990439,1749385841146,-480.0,0.00019178,2]
[364990441,1749385841155,-151.0,0.00019178,2]
[364990443,1749385841165,-151.0,0.00019178,2]
[364990445,1749385841174,-151.0,0.00019178,2]
[364990447,1749385841188,-151.0,0.00019178,2]
[364990449,1749385841197,-151.0,0.00019178,2]
[364990451,1749385841208,-151.0,0.00019178,2]
[364990453,1749385841217,-158.674,0.00019178,2]
[364990455,1749385841226,-183.308308,0.00019178,2]
[364990457,1749385841236,-151.0,0.00019178,2]
[364990459,1749385841245,-227.857062,0.00019178,2]
[364990461,1749385841254,-151.0,0.00019178,2]
[364990463,1749385841263,-283.221034,0.00019178,2]
[364990465,1749385841272,-283.221034,0.00019178,2]
[364990467,1749385841281,-283.221034,0.00019178,2]
[364990469,1749385841291,-283.221034,0.00019178,2]
[364990471,1749385841300,-480.0,0.00019178,2]
[364990473,1749385841309,-480.0,0.00019178,2]
[364990475,1749385841318,-480.0,0.00019178,2]
[364990476,1749385841328,-480.0,0.00019178,2]
[364990478,1749385841339,-151.0,0.00019178,2]
[364990480,1749385841351,-217.809042,0.00019178,2]
[364990483,1749385841363,-151.350939,0.00019178,2]
[364990485,1749385841372,-250.040995,0.00019178,2]
[364990486,1749385841384,-250.040995,0.00019178,2]
[364990488,1749385841394,-250.040995,0.00019178,2]
[364990490,1749385841403,-250.040995,0.00019178,2]
[364990492,1749385841413,-250.040995,0.00019178,2]
[364990494,1749385841423,-250.040995,0.00019178,2]
[364990496,1749385841432,-250.040995,0.00019178,2]
[364990498,1749385841441,-250.040995,0.00019178,2]
[364990500,1749385841451,-250.040995,0.00019178,2]
[364990502,1749385841461,-250.040995,0.00019178,2]
[364990504,1749385841470,-250.040995,0.00019178,2]
[364990506,1749385841479,-250.040995,0.00019178,2]
[364990508,1749385841488,-250.040995,0.00019178,2]
[364990510,1749385841498,-250.040995,0.00019178,2]
[364990512,1749385841508,-480.0,0.00019178,2]
[364990514,1749385841518,-151.0,0.00019178,2]
[364990516,1749385841527,-151.0,0.00019178,2]
[364990518,1749385841536,-151.0,0.00019178,2]
[364990520,1749385841545,-154.543673,0.00019178,2]
[364990522,1749385841554,-151.0,0.00019178,2]
[364990523,1749385841564,-151.0,0.00019178,2]
[364990525,1749385841573,-151.0,0.00019178,2]
[364990526,1749385841582,-480.0,0.00019178,2]
[364990528,1749385841592,-480.0,0.00019178,2]
[364990530,1749385841601,-446.84459916,0.00019178,2]
[364990532,1749385841610,-480.0,0.00019178,2]
[364990534,1749385841619,-480.0,0.00019178,2]
[364990536,1749385841629,-480.0,0.00019178,2]
[364990538,1749385841638,-480.0,0.00019178,2]
[364990540,1749385841647,-480.0,0.00019178,2]
[364990542,1749385841656,-151.0,0.00019178,2]
[364990544,1749385841666,-151.0,0.00019178,2]
[364990545,1749385841677,-151.0,0.00019178,2]
[364990547,1749385841687,-151.0,0.00019178,2]
[364990549,1749385841697,-172.259752,0.00019178,2]
[364990551,1749385841707,-311.78965774,0.00019178,2]
[364990553,1749385841716,-271.09960821,0.00019178,2]
[364990555,1749385841725,-480.0,0.00019178,2]
[364990557,1749385841734,-480.0,0.00019178,2]
[364990559,1749385841743,-151.0,0.00019178,2]
[364990561,1749385841752,-151.0,0.00019178,2]
[364990563,1749385841761,-224.132331,0.00019178,2]
[364990565,1749385841770,-480.0,0.00019178,2]
[364990567,1749385841779,-480.0,0.00019178,2]
[364990569,1749385841788,-480.0,0.00019178,2]
[364990571,1749385841798,-151.0,0.00019178,2]
[364990573,1749385841807,-179.061466,0.00019178,2]
[364990574,1749385841816,-480.0,0.00019178,2]
[364990576,1749385841825,-480.0,0.00019178,2]
[364990578,1749385841834,-151.0,0.00019178,2]
[364990580,1749385841843,-151.0,0.00019178,2]
[364990582,1749385841852,-151.0,0.00019178,2]
[364990584,1749385841861,-151.0,0.00019178,2]
[364990586,1749385841870,-151.0,0.00019178,2]
[364990588,1749385841879,-151.0,0.00019178,2]
[364990590,1749385841888,-151.0,0.00019178,2]
[364990592,1749385841897,-480.0,0.00019178,2]
[364990594,1749385841906,-480.0,0.00019178,2]
[364990596,1749385841916,-480.0,0.00019178,2]
[364990598,1749385841925,-159.33076741,0.00019178,2]
[364990599,1749385841934,-480.0,0.00019178,2]
[364990601,1749385841944,-480.0,0.00019178,2]
[364990603,1749385841954,-151.0,0.00019178,2]
[364990605,1749385841963,-151.0,0.00019178,2]
[364990607,1749385841973,-480.0,0.00019178,2]
[364990609,1749385841982,-480.0,0.00019178,2]
[364990610,1749385841991,-480.0,0.00019178,2]
[364990611,1749385842000,-295.574547,0.00019178,2]
[364990612,1749385842010,-295.574547,0.00019178,2]
[364990613,1749385842019,-295.574547,0.00019178,2]
[364990629,1749385842239,-295.574547,0.00019178,2]
[364990631,1749385842248,-295.574547,0.00019178,2]
[364990633,1749385842257,-295.574547,0.00019178,2]
[364990635,1749385842270,-295.574547,0.00019178,2]
[364990636,1749385842285,-480.0,0.00019178,2]
[364990638,1749385842296,-295.574547,0.00019178,2]
[364990640,1749385842306,-295.574547,0.00019178,2]
[364990644,1749385842317,-295.574547,0.00019178,2]
[364990646,1749385842326,-295.574547,0.00019178,2]
[364990647,1749385842335,-295.574547,0.00019178,2]
[364990649,1749385842345,-480.0,0.00019178,2]
[364990652,1749385842355,-295.574547,0.00019178,2]
[364990653,1749385842364,-295.574545,0.00019178,2]
[364990656,1749385842374,-480.0,0.00019178,2]
[364990657,1749385842383,-480.0,0.00019178,2]
[364990659,1749385842393,-502.34256146,0.00019178,2]
[364990661,1749385842403,-480.0,0.00019178,2]
[364990663,1749385842412,-349.21364189,0.00019178,2]
[364990665,1749385842421,-480.0,0.00019178,2]
[364990667,1749385842431,-480.0,0.00019178,2]
[364990669,1749385842441,-480.0,0.00019178,2]
[364990672,1749385842451,-480.0,0.00019178,2]